bitfinex/quotes_ETHUSD_20240711
["timestamp","ask_amount","ask_price","bid_price","bid_amount"]
[1720656694989,0.08591171,3105.8,3105.3,1.28433927]
[1720656695204,0.08591171,3105.8,3105.4,1.12130353]
[1720656695489,0.08591171,3105.8,3105.3,1.28433927]
[1720656695688,0.08591171,3105.8,3105.4,2.80323478]
[1720656695987,0.08591171,3105.8,3105.3,1.28433927]
[1720656696219,0.08591171,3105.8,3105.4,2.80323585]
[1720656696423,0.08591171,3105.8,3105.3,1.28433927]
[1720656696626,0.08591171,3105.8,3105.4,2.99929697]
[1720656696784,0.08591171,3105.8,3105.5,1.12130205]
[1720656696990,0.08591171,3105.8,3105.4,0.19604173]
[1720656697257,0.08591171,3105.8,3105.5,1.12128834]
[1720656697463,0.08591171,3105.8,3105.3,1.96084547]
[1720656697964,0.08591171,3105.8,3105.4,2.80322102]
[1720656698252,2.3941,3105.7,3105.3,1.01392957]
[1720656698632,0.09829211,3105.6,3105.3,1.01392957]
[1720656701851,0.09829211,3105.6,3105.4,1.12136333]
[1720656702060,0.09829211,3105.6,3105.3,1.01392957]
[1720656702465,2.4649,3105.9,3105.3,1.01392957]
[1720656702619,0.09817189,3105.5,3105.4,1.12137105]
[1720656702819,2.4649,3105.9,3105.4,1.12137105]
[1720656703067,0.0981927,3105.5,3105.2,0.67673423]
[1720656703369,0.09815961,3105.4,3105.3,1.68205516]
[1720656703517,2.4649,3105.9,3105.3,2.80342529]
[1720656703717,2.4649,3105.9,3105.4,1.12137013]
[1720656703917,2.4649,3105.9,3105.2,0.67673423]
[1720656704138,3.45539,3105.9,3105.3,2.8034295]
[1720656704316,3.45539,3105.9,3105.2,0.67673423]
[1720656704528,0.99049,3105.9,3105.3,2.80342951]
[1720656704719,2.4649,3105.8,3105.0,0.67673423]
[1720656704919,0.345539,3105.7,3105.1,2.80358968]
[1720656705162,0.44381655,3105.7,3105.2,1.12143587]
[1720656705331,0.44381655,3105.7,3105.0,0.67673423]
[1720656705519,0.44381655,3105.7,3105.1,2.80359055]
[1720656705719,0.44381655,3105.7,3105.2,2.80357103]
[1720656706032,0.44381655,3105.7,3105.0,0.67673423]
[1720656706355,0.44381655,3105.7,3105.1,2.803584]
[1720656706523,0.44381655,3105.7,3105.2,1.1214336]
[1720656706854,0.29087166,3105.6,3105.0,0.67673423]
[1720656707057,0.44381655,3105.7,3105.1,2.80358546]
[1720656707270,0.44381655,3105.7,3105.0,0.67673423]
[1720656707271,0.0981853,3105.5,3105.2,1.12143418]
[1720656707559,0.345539,3105.7,3105.0,0.67673423]
[1720656707560,0.09772677,3105.4,3105.0,0.67673423]
[1720656707768,0.345539,3105.7,3105.1,2.80359538]
[1720656707961,0.09771146,3105.3,3105.1,1.12143815]
[1720656708126,0.09771146,3105.3,3104.8,3.48743078]
[1720656708328,2.4649,3105.8,3105.0,0.67693642]
[1720656708523,2.4649,3105.8,3105.1,2.80356269]
[1720656708728,0.09823842,3105.7,3105.2,1.12143775]
[1720656708923,0.09823842,3105.7,3105.0,0.67693642]
[1720656709124,0.09823842,3105.7,3105.1,1.12142726]
[1720656709363,0.45360126,3105.7,3105.2,1.12142726]
[1720656709667,0.45360126,3105.7,3105.0,0.67693642]
[1720656709875,0.45360126,3105.7,3105.1,2.80353253]
[1720656710046,0.45360126,3105.7,3105.0,0.67693642]
[1720656710047,0.45360126,3105.7,3105.2,1.12141301]
[1720656710253,0.45360126,3105.7,3105.0,0.67693642]
[1720656710432,0.45360126,3105.7,3105.1,2.80352095]
[1720656710634,0.45360126,3105.7,3105.2,1.12140838]
[1720656710833,0.45360126,3105.7,3105.0,0.67693642]
[1720656711069,0.45360126,3105.7,3105.1,2.80351738]
[1720656711275,0.45360126,3105.7,3105.2,1.12140695]
[1720656711436,0.45360126,3105.7,3105.0,0.67693642]
[1720656711636,0.45360126,3105.7,3105.1,2.8035416]
[1720656711838,0.45360126,3105.7,3105.2,1.12141664]
[1720656712038,0.45360126,3105.7,3105.0,1.35377723]
[1720656712291,0.45360126,3105.7,3105.1,2.80354453]
[1720656712494,0.45360126,3105.7,3105.2,1.12141781]
[1720656712696,0.45360126,3105.7,3105.0,0.67693642]
[1720656713009,0.45360126,3105.7,3105.1,2.803604]
[1720656713168,2.3692,3105.6,3105.0,0.67693642]
[1720656713362,2.46706214,3105.6,3105.1,2.80360336]
[1720656713583,2.46706214,3105.6,3105.0,0.67693642]
[1720656713779,2.46706214,3105.6,3105.1,2.80360967]
[1720656713991,2.46706214,3105.6,3105.0,0.67693642]
[1720656714203,2.46706214,3105.6,3105.1,2.80360853]
[1720656714382,2.46706214,3105.6,3105.0,0.67693642]
[1720656714708,2.46706214,3105.6,3105.1,2.8036061]
[1720656714870,2.46706214,3105.6,3105.0,0.67693642]
[1720656715406,2.46706214,3105.6,3105.1,2.80360593]
[1720656715609,2.74930464,3105.6,3105.0,0.67693642]
[1720656715905,2.74930464,3105.6,3105.1,2.80357346]
[1720656716208,2.74930464,3105.6,3105.0,0.67693642]
[1720656722692,3.58730464,3105.6,3105.0,0.67693642]
[1720656722983,2.3105,3105.3,3105.0,0.67693642]
[1720656723521,2.48975601,3105.2,3105.0,0.67693642]
[1720656725107,3.32775601,3105.2,3105.0,0.67693642]
[1720656726111,2.48975601,3105.2,3105.0,0.67693642]
[1720656726319,0.2489756,3105.1,3105.0,0.67693642]
[1720656726618,0.34682689,3105.1,3105.0,0.67693642]
[1720656730618,2.66702689,3105.1,3105.0,0.67693642]
[1720656730819,5.66702689,3105.1,3105.0,0.67693642]
[1720656735752,5.66514688,3105.1,3105.0,0.67693642]
[1720656743876,5.66514688,3105.1,3104.2,2.4753]
[1720656744064,0.838,3104.9,3104.2,2.4753]
[1720656744259,1.78831469,3104.9,3104.2,2.4753]
[1720656744458,3.1567,3104.7,3103.8,2.3781]
[1720656744852,0.838,3104.5,3103.8,2.3781]
[1720656745378,0.09718468,3104.4,3103.8,2.3781]
[1720656749160,3.0,3104.6,3103.9,2.3665]
[1720656749493,0.09721559,3104.5,3104.0,0.32045]
[1720656750248,0.09721559,3104.5,3103.9,2.3665]
[1720656751483,2.48011559,3104.5,3103.9,2.3665]
[1720656751852,5.48011559,3104.5,3103.9,2.3665]
[1720656752266,2.48011559,3104.5,3103.9,2.3665]
[1720656753396,3.31811559,3104.5,3103.6,3.2424]
[1720656753553,3.31811559,3104.5,3103.7,0.32424]
[1720656753960,3.31811559,3104.5,3103.6,3.2424]
[1720656755074,0.838,3104.3,3103.3,0.838]
[1720656755274,0.838,3104.3,3103.4,0.55]
[1720656755493,0.09704348,3104.2,3103.4,0.55]
[1720656755825,0.09704348,3104.2,3103.4,0.38365]
[1720656755957,0.09704348,3104.2,3103.2,3.2865]
[1720656756399,2.4299,3104.0,3103.2,2.4485]
[1720656756899,0.09694024,3103.9,3103.2,2.4485]
[1720656757265,2.4299,3104.0,3103.2,2.4485]
[1720656757598,0.09736968,3103.9,3103.2,3.2865]
[1720656757794,2.4299,3104.0,3103.3,0.32865]
[1720656758003,0.09733657,3103.8,3103.4,0.838]
[1720656758203,7.44,3104.7,3103.6,2.3408]
[1720656758204,0.838,3104.4,3103.6,2.3408]
[1720656758364,0.0968467,3103.7,3103.6,3.1788]
[1720656758565,7.44,3104.2,3103.6,3.1788]
[1720656758898,0.09695388,3104.1,3103.6,3.49668]
[1720656759406,3.09695388,3104.1,3103.4,0.838]
[1720656759578,3.09695388,3104.1,3103.5,2.3574]
[1720656762307,2.4494,3104.0,3103.1,0.838]
[1720656762521,3.09695388,3104.1,3103.2,0.55]
[1720656762671,0.09689689,3103.9,3103.3,3.2663]
[1720656762877,3.0,3104.1,3103.4,0.38163]
[1720656763077,0.09680759,3103.8,3103.4,0.38163]
[1720656763301,3.0,3104.1,3103.4,0.38163]
[1720656763508,0.09723206,3103.7,3103.4,0.38163]
[1720656763710,3.0,3104.1,3103.4,0.38163]
[1720656763911,0.09719895,3103.6,3103.4,0.38163]
[1720656764117,0.09719895,3103.6,3103.5,0.364793]
[1720656764320,3.0,3104.1,3103.5,0.364793]
[1720656764819,0.09734168,3104.0,3103.5,0.364793]
[1720656766111,0.09734168,3104.0,3103.3,3.2663]
[1720656766422,8.278,3104.2,3103.3,3.2663]
[1720656766626,0.09730857,3103.9,3103.3,3.2663]
[1720656766825,8.278,3104.2,3103.3,3.2663]
[1720656766983,0.09727546,3103.8,3103.3,3.2663]
[1720656767329,8.278,3104.2,3103.4,0.38807366]
[1720656767482,0.09720122,3103.7,3103.4,0.38807366]
[1720656767820,0.0971681,3103.6,3103.3,3.2663]
[1720656768018,3.0,3104.1,3103.3,3.2663]
[1720656768201,0.09714526,3103.5,3103.3,3.2663]
[1720656768381,3.0,3104.1,3103.3,2.4283]
[1720656768575,0.09708264,3103.4,3103.3,2.4283]
[1720656768790,3.0,3104.1,3103.3,2.4283]
[1720656769019,0.09627613,3103.4,3103.3,2.4283]
[1720656769215,3.0,3104.1,3103.3,2.4283]
[1720656769418,0.09628641,3103.4,3103.3,2.4283]
[1720656769603,3.0,3104.1,3103.3,2.75493]
[1720656769801,0.09628641,3103.4,3103.3,2.75493]
[1720656770016,3.0,3104.1,3103.3,2.75493]
[1720656770220,0.09628641,3103.4,3103.3,2.75493]
[1720656770405,3.0,3104.1,3103.3,2.75493]
[1720656770603,0.09628641,3103.4,3103.3,2.75493]
[1720656771131,8.278,3104.2,3103.3,2.75493]
[1720656771437,0.09651822,3104.1,3103.3,2.4283]
[1720656774197,8.278,3104.2,3103.3,2.4283]
[1720656774529,3.0,3104.1,3103.3,2.4283]
[1720656774941,0.09635171,3104.0,3103.3,2.4283]
[1720656776855,0.09635171,3104.0,3103.3,3.2663]
[1720656777140,0.09635171,3104.0,3103.4,0.32663]
[1720656777949,0.09635171,3104.0,3103.6,2.2788]
[1720656778301,7.44,3104.2,3103.6,2.2788]
[1720656778539,0.09558512,3103.9,3103.6,2.2788]
[1720656778740,7.44,3104.2,3103.6,2.2788]
[1720656778741,9.759,3104.2,3103.6,2.2788]
[1720656778906,0.09552904,3103.8,3103.6,2.539343]
[1720656779106,9.759,3104.2,3103.6,2.539343]
[1720656779335,0.09549591,3103.7,3103.6,2.539343]
[1720656779643,0.09549254,3103.7,3103.6,0.260543]
[1720656779843,10.597,3104.2,3103.4,0.32663]
[1720656780012,0.09573724,3103.7,3103.5,1.12199027]
[1720656780208,10.597,3104.2,3103.3,2.92785408]
[1720656780437,0.09546969,3103.6,3103.4,2.80496373]
[1720656780607,7.44,3104.2,3103.5,3.42538549]
[1720656780811,7.44,3104.2,3103.5,2.3034]
[1720656781019,7.44,3104.2,3103.6,0.31414]
[1720656783846,0.33674718,3104.1,3103.6,0.31414]
[1720656784146,0.33674718,3104.1,3103.5,2.3034]
[1720656784711,0.33674718,3104.1,3103.3,0.67645408]
[1720656784712,2.3563,3104.0,3103.3,0.67645408]
[1720656784952,0.33674718,3104.1,3103.5,2.4188]
[1720656785132,0.33674718,3104.1,3103.6,1.1219825]
[1720656785345,0.33674718,3104.1,3103.5,2.4188]
[1720656785518,0.33674718,3104.1,3103.6,1.51528397]
[1720656785710,0.33674718,3104.1,3103.7,1.12195856]
[1720656785910,0.33674718,3104.1,3103.6,0.39332541]
[1720656786119,0.33674718,3104.1,3103.7,1.12195871]
[1720656786319,0.33674718,3104.1,3103.6,0.39332541]
[1720656787811,0.33674718,3104.1,3103.7,1.12195825]
[1720656788040,0.33674718,3104.1,3103.6,0.39332541]
[1720656788446,0.33674718,3104.1,3103.7,1.12196141]
[1720656788650,0.33674718,3104.1,3103.6,0.39332541]
[1720656788848,0.33674718,3104.1,3103.7,1.12196131]
[1720656789144,0.33674718,3104.1,3103.5,2.4188]
[1720656789511,0.33674718,3104.1,3103.6,1.12200657]
[1720656789711,0.33674718,3104.1,3103.5,2.4188]
[1720656790015,0.33674718,3104.1,3103.6,2.80497345]
[1720656790231,0.33674718,3104.1,3103.5,2.4188]
[1720656790434,0.33674718,3104.1,3103.6,2.804963]
[1720656790626,0.33674718,3104.1,3103.5,3.09525408]
[1720656790824,0.33674718,3104.1,3103.6,1.12198551]
[1720656791025,0.33674718,3104.1,3103.5,2.4188]
[1720656791253,0.33674718,3104.1,3103.6,2.80499373]
[1720656791568,0.33674718,3104.1,3103.4,0.67645408]
[1720656791864,0.33674718,3104.1,3103.5,2.80503033]
[1720656792154,0.33674718,3104.1,3103.5,1.12201213]
[1720656792348,0.33674718,3104.1,3103.6,2.80500647]
[1720656792549,0.33674718,3104.1,3103.4,1.16801751]
[1720656792945,0.33674718,3104.1,3103.5,1.12199665]
[1720656793263,2.4765,3104.0,3103.6,1.12199661]
[1720656793427,2.4765,3104.0,3103.5,1.12199665]
[1720656793631,2.4765,3104.0,3103.6,2.80499106]
[1720656793964,2.4765,3104.0,3103.5,1.12199665]
[1720656794138,2.4765,3104.0,3103.6,2.80499123]
[1720656794460,2.4765,3104.0,3103.5,1.12199665]
[1720656794669,2.4765,3104.0,3103.6,2.80499106]
[1720656794830,2.4765,3104.0,3103.5,1.12199665]
[1720656795030,0.09581191,3103.9,3103.6,2.80499123]
[1720656795363,2.3139,3103.8,3103.5,1.12199665]
[1720656795561,2.3139,3103.6,3103.5,0.78529665]
[1720656795760,2.3139,3103.6,3103.3,1.01604125]
[1720656795963,2.3742,3103.4,3103.3,1.01604125]
[1720656796469,3.30742385,3103.4,3103.3,1.01604125]
[1720656796627,3.64407711,3103.4,3103.3,1.01604125]
[1720656797447,2.3309,3103.3,3102.9,1.34289377]
[1720656797653,3.1689,3103.0,3102.9,1.34289377]
[1720656797947,2.70279,3103.0,3102.9,1.34289377]
[1720656798148,6.6354626,3103.0,3102.9,1.34289377]
[1720656802171,0.4665626,3103.0,3102.9,1.34289377]
[1720656802488,0.0946726,3103.0,3102.9,1.34289377]
[1720656802670,0.838,3103.2,3102.9,1.34289377]
[1720656802963,0.09219108,3103.0,3102.9,1.34289377]
[1720656803163,0.838,3103.2,3102.9,1.34289377]
[1720656803465,0.36446533,3103.2,3102.9,1.34289377]
[1720656803653,0.09249728,3103.1,3102.9,1.34289377]
[1720656804041,0.33665326,3103.4,3102.9,1.34289377]
[1720656804246,0.09248326,3103.0,3102.9,1.34289377]
[1720656804565,0.33665326,3103.4,3102.9,1.34289377]
[1720656804745,0.09242583,3103.0,3102.9,1.34289377]
[1720656804942,0.838,3103.3,3102.9,1.34289377]
[1720656805441,0.09258945,3103.2,3102.9,1.34289377]
[1720656805642,0.838,3103.1,3102.9,1.34289377]
[1720656805846,3.21074748,3103.1,3102.5,0.00157313]
[1720656806042,0.838,3102.6,3102.5,0.00157313]
[1720656806470,0.93019243,3102.6,3102.5,0.00157313]
[1720656806691,0.09219243,3102.6,3102.5,0.00157313]
[1720656806893,3.32107475,3103.0,3102.5,0.00157313]
[1720656807190,0.0922974,3102.6,3102.5,0.00157313]
[1720656807356,3.32107475,3103.0,3102.5,0.00157313]
[1720656807689,1.35155702,3102.9,3102.5,0.00157313]
[1720656807866,1.44378721,3102.9,3102.5,0.00157313]
[1720656808468,0.09223019,3102.9,3102.5,0.00157313]
[1720656808879,7.44,3103.1,3102.5,0.00157313]
[1720656809189,0.09217254,3102.8,3102.5,0.00157313]
[1720656809396,7.44,3103.1,3102.5,0.00157313]
[1720656809571,0.09218982,3102.7,3102.5,0.00157313]
[1720656809771,7.44,3103.1,3102.5,0.00157313]
[1720656810271,0.0922293,3103.0,3102.5,0.00157313]
[1720656812601,0.0922293,3103.0,3102.5,0.24547044]
[1720656812893,0.0922293,3103.0,3102.5,0.30992653]
[1720656813093,7.44,3103.4,3102.5,0.30992653]
[1720656813320,0.09271814,3102.9,3102.5,0.30992653]
[1720656813474,3.0,3103.6,3102.5,0.30992653]
[1720656813681,0.09248974,3102.8,3102.6,0.27473265]
[1720656813866,3.0,3103.6,3102.6,0.27473265]
[1720656814064,0.09229776,3102.7,3102.6,0.27473265]
[1720656814293,3.0,3103.6,3102.6,0.27473265]
[1720656814488,0.09202964,3102.7,3102.6,0.27473265]
[1720656814689,3.0,3103.6,3102.6,0.27473265]
[1720656814889,0.09229024,3102.7,3102.6,0.27473265]
[1720656815203,4.27106,3103.6,3102.6,0.27473265]
[1720656815572,0.09235685,3103.5,3102.6,0.27473265]
[1720656816463,0.09235685,3103.5,3102.5,0.06602922]
[1720656816693,0.09235685,3103.5,3102.5,0.00157313]
[1720656821223,0.09235685,3103.5,3102.5,0.06602944]
[1720656822790,0.09235685,3103.5,3102.6,2.3]
[1720656823120,0.09235685,3103.5,3102.7,0.06445316]
[1720656823484,0.09235685,3103.5,3102.7,0.23660263]
[1720656823681,7.44,3103.7,3102.7,0.23660263]
[1720656823991,0.09095298,3103.4,3102.9,2.3268]
[1720656824200,0.09124382,3103.6,3102.9,2.3268]
[1720656824522,7.44,3103.7,3102.9,2.3268]
[1720656824679,0.09092765,3103.5,3102.9,2.3268]
[1720656824884,7.44,3103.7,3103.0,0.28768]
[1720656825112,0.09101444,3103.4,3102.9,2.3268]
[1720656825313,7.44,3103.7,3102.9,2.3268]
[1720656825513,0.0909813,3103.3,3102.9,2.3268]
[1720656825718,7.44,3103.7,3102.9,2.3268]
[1720656825926,0.09103999,3103.2,3102.9,2.3268]
[1720656826227,7.44,3103.7,3103.0,0.28768]
[1720656826395,0.09098389,3103.1,3103.0,0.28768]
[1720656826598,7.44,3103.7,3103.0,0.28768]
[1720656826805,0.09125692,3103.6,3103.0,0.28768]
[1720656828423,0.09125692,3103.6,3103.2,2.2529]
[1720656828615,3.0,3103.9,3103.3,0.28029]
[1720656828816,3.0,3104.2,3103.3,0.28029]
[1720656829213,0.0915511,3104.1,3103.2,2.2529]
[1720656833520,7.44,3104.3,3103.2,2.2529]
[1720656833719,0.09156284,3104.0,3103.2,2.2529]
[1720656833897,7.44,3104.3,3103.2,2.2529]
[1720656834100,7.44,3104.3,3103.4,2.3528]
[1720656834434,7.44,3104.3,3103.4,2.64308]
[1720656834639,7.44,3104.3,3103.4,3.48208]
[1720656836347,7.44,3104.3,3103.5,2.4761]
[1720656838018,3.0,3104.6,3103.5,2.4761]
[1720656838458,5.3295,3104.9,3103.6,0.06443328]
[1720656838752,5.3295,3104.9,3103.6,2.54003328]
[1720656838753,1.27695,3104.8,3103.6,2.54003328]
[1720656838912,4.27695,3104.8,3103.6,2.54003328]
[1720656839721,4.27695,3104.8,3103.6,2.4756]
[1720656839929,4.27695,3104.8,3103.7,0.06443351]
[1720656840124,0.75252043,3104.7,3103.8,2.4647]
[1720656844036,0.09187543,3104.7,3103.8,2.4647]
[1720656844436,3.0,3104.9,3103.8,2.4647]
[1720656844660,0.09198849,3104.8,3103.8,2.4647]
[1720656846552,2.2689,3104.7,3103.8,2.4647]
[1720656846946,0.09159508,3104.6,3103.8,2.4647]
[1720656847170,0.23604951,3104.5,3103.8,2.4647]
[1720656847534,0.09187453,3104.4,3103.8,2.4647]
[1720656848869,0.09187453,3104.4,3103.1,3.0]
[1720656848870,2.3422,3104.3,3103.1,2.306]
[1720656849072,0.09138032,3104.2,3103.1,2.306]
[1720656849374,0.24335803,3104.1,3103.1,2.306]
[1720656849764,2.2815,3103.9,3103.1,2.306]
[1720656850083,0.09181469,3103.8,3103.1,2.306]
[1720656850572,0.09126429,3103.7,3103.1,2.306]
[1720656851066,3.24335803,3104.1,3102.6,2.3324]
[1720656851257,2.3877,3103.6,3102.6,2.3324]
[1720656851468,0.09121466,3103.5,3102.6,2.3324]
[1720656853886,0.33737126,3103.4,3102.6,2.3324]
[1720656854265,0.0915201,3103.3,3102.6,2.3324]
[1720656856160,0.0915201,3103.3,3102.5,0.00157313]
[1720656856363,0.0915201,3103.3,3102.6,2.3723]
[1720656856558,0.43440924,3103.3,3102.6,2.3723]
[1720656857889,0.43440924,3103.3,3102.5,0.00157313]
[1720656862668,2.4756,3103.2,3102.5,0.00157313]
[1720656862977,0.09139347,3103.1,3102.5,0.00157313]
[1720656865377,0.33737126,3103.4,3102.5,0.00157313]
[1720656865578,0.09071704,3103.0,3102.5,0.33511508]
[1720656865904,0.09106177,3102.9,3102.5,0.33511508]
[1720656866211,0.33737126,3103.4,3102.5,0.33511508]
[1720656866422,0.0906943,3102.8,3102.5,0.00157313]
[1720656866626,0.33737126,3103.4,3102.5,0.00157313]
[1720656867007,0.0908141,3103.3,3102.5,0.00157313]
[1720656872649,0.9308141,3103.3,3102.5,0.00157313]
[1720656876061,2.4048,3103.2,3102.5,0.00157313]
[1720656876267,0.33356141,3103.1,3102.5,0.00157313]
[1720656876470,0.42440095,3103.1,3102.5,0.00157313]
[1720656876835,0.33735081,3103.0,3102.5,0.00157313]
[1720656877371,0.09115632,3102.9,3102.5,0.00157313]
[1720656883844,0.09115632,3102.9,3102.6,2.4878]
[1720656892867,0.09115632,3102.9,3102.5,0.00157313]
[1720656895477,0.09115632,3102.9,3102.6,1.1223676]
[1720656895698,0.09115632,3102.9,3102.5,0.00157313]
[1720656895988,0.09115632,3102.9,3102.6,1.1223644]
[1720656896200,0.09115632,3102.9,3102.5,0.00157313]
[1720656896380,0.09115632,3102.9,3102.6,1.12236444]
[1720656896577,0.09115632,3102.9,3102.5,0.00157313]
[1720656896578,0.09115632,3102.9,3102.5,0.67714794]
[1720656896902,0.09115632,3102.9,3102.6,2.8059111]
[1720656897080,0.09115632,3102.9,3102.5,0.67714794]
[1720656897279,0.09115632,3102.9,3102.6,2.80590867]
[1720656897608,0.09115632,3102.9,3102.7,1.12236346]
[1720656897826,0.09115632,3102.9,3102.5,0.67714794]
[1720656898023,0.09115632,3102.9,3102.6,2.80587915]
[1720656898227,0.09115632,3102.9,3102.7,2.80587915]
[1720656898391,0.09115632,3102.9,3102.8,1.12229948]
[1720656899223,0.09115632,3102.9,3102.6,0.84]
[1720656899405,0.09115632,3102.9,3102.7,2.80577055]
[1720656899615,0.09115632,3102.9,3102.7,1.68346233]
[1720656899797,0.09115632,3102.9,3102.6,1.51799689]
[1720656900128,0.09115632,3102.9,3102.7,2.8057696]
[1720656900362,0.09115632,3102.9,3102.8,1.12230784]
[1720656900561,0.09115632,3102.9,3102.8,2.80573482]
[1720656900766,0.09115632,3102.9,3102.8,5.20693482]
[1720656901356,0.09115632,3102.9,3102.8,5.88488759]
[1720656901535,0.09115632,3102.9,3102.8,6.72488759]
[1720656901717,0.09115632,3102.9,3102.8,4.74031537]
[1720656901917,0.09115632,3102.9,3102.8,6.86790895]
[1720656902341,0.09115632,3102.9,3102.8,7.54568965]
[1720656903542,0.09115632,3102.9,3102.8,11.01828303]
[1720656903743,1e-08,3102.9,3102.8,12.88518426]
[1720656903947,0.33737457,3103.5,3102.9,2.487]
[1720656904153,0.33737457,3103.5,3103.4,0.84]
[1720656904324,0.33737457,3103.5,3103.4,3.64554635]
[1720656905262,0.33737457,3103.5,3103.4,4.76712592]
[1720656905417,0.33737457,3103.5,3103.4,4.76712952]
[1720656905621,0.33737457,3103.5,3103.4,7.04542952]
[1720656905833,0.33737457,3103.5,3103.4,10.17825396]
[1720656906033,0.33737457,3103.5,3103.4,9.50067061]
[1720656906477,0.33737457,3103.5,3103.4,10.1772108]
[1720656907360,0.33737457,3103.5,3103.4,10.05067061]
[1720656907732,0.33737457,3103.5,3103.4,8.36773081]
[1720656908765,0.33737457,3103.5,3103.4,5.56256734]
[1720656909666,0.33737457,3103.5,3103.4,4.44060129]
[1720656909972,0.39339871,3103.4,3103.1,0.67654019]
[1720656910177,0.39339871,3103.4,3103.2,1.68298118]
[1720656910332,0.08783639,3103.3,3103.1,0.84]
[1720656910530,0.39339871,3103.4,3103.1,0.84]
[1720656910758,0.08779047,3103.3,3103.1,0.84]
[1720656911068,0.39339871,3103.4,3103.1,0.84]
[1720656911523,0.08776751,3103.3,3103.1,0.84]
[1720656911861,0.39339871,3103.4,3103.1,1.29165402]
[1720656912162,0.08781343,3103.3,3103.1,1.29165402]
[1720656912367,0.39339871,3103.4,3103.1,1.68505302]
[1720656915547,0.33737457,3103.5,3103.3,0.84]
[1720656921342,0.33737457,3103.5,3103.3,0.446]
[1720656922044,0.33737457,3103.5,3103.1,1.233399]
[1720656922847,2.4365,3103.4,3102.9,0.84]
[1720656927933,2.4365,3103.4,3103.1,0.84]
[1720656929192,0.33737457,3103.5,3103.1,0.84]
[1720656929690,0.33737457,3103.5,3103.3,0.84]
[1720656929891,0.33737457,3103.5,3103.3,1.16687]
[1720656930075,0.08551539,3103.4,3103.3,1.16687]
[1720656930806,0.08551539,3103.4,3103.3,2.28884071]
[1720656930954,0.08551539,3103.4,3103.3,1.16687]
[1720656931153,0.08551539,3103.4,3103.3,2.91420522]
[1720656931365,7.44,3104.0,3103.3,5.16496448]
[1720656931595,0.08581568,3103.9,3103.8,0.84]
[1720656932096,0.08581568,3103.9,3103.6,0.84]
[1720656933464,0.33736108,3104.1,3103.6,0.84]
[1720656933802,0.08629729,3104.0,3103.6,0.84]
[1720656935432,0.36710313,3104.0,3103.4,0.84]
[1720656936277,0.08629729,3104.0,3103.4,0.84]
[1720656936706,0.08629729,3104.0,3103.2,0.6755246]
[1720656936707,2.4346,3103.9,3103.2,0.6755246]
[1720656936864,2.4346,3103.9,3103.4,0.84]
[1720656937068,0.08587205,3103.8,3103.4,0.84]
[1720656938341,0.08587205,3103.8,3103.6,0.84]
[1720656938552,0.08587205,3103.8,3103.7,0.32826]
[1720656938746,0.33736108,3104.1,3103.7,0.32826]
[1720656939045,0.33736108,3104.1,3104.0,0.84]
[1720656942621,9.7185,3104.8,3104.0,4.26033028]
[1720656942820,0.33736248,3104.6,3104.3,0.84]
[1720656943244,0.33736248,3104.6,3104.5,0.84]
[1720656943763,2.3323,3105.0,3104.5,0.84]
[1720656944072,2.66967197,3105.0,3104.5,0.84]
[1720656945078,0.08691947,3104.9,3104.3,0.84]
[1720656945735,0.08691947,3104.9,3104.1,0.67578617]
[1720656945736,2.4757,3104.8,3104.1,0.67578617]
[1720656945935,2.4757,3104.8,3104.2,3.6440028]
[1720656946136,0.08669071,3104.7,3104.3,1.12160112]
[1720656946357,0.08669071,3104.7,3104.2,0.84]
[1720656946563,2.4757,3104.8,3104.2,0.84]
[1720656946763,0.0869743,3104.6,3104.2,0.84]
[1720656946937,0.0870074,3104.7,3104.2,0.84]
[1720656947136,0.0869412,3104.5,3104.2,0.84]
[1720656947435,0.08689967,3104.4,3104.2,0.84]
[1720656947632,2.4757,3104.8,3104.2,0.84]
[1720656947835,0.08699897,3104.7,3104.2,0.84]
[1720656949480,0.08699897,3104.7,3104.4,0.84]
[1720656949838,2.4757,3104.8,3104.4,0.84]
[1720656950044,0.08681658,3104.7,3104.4,0.84]
[1720656950239,0.08681658,3104.7,3104.6,0.84]
[1720656950470,2.4757,3104.8,3104.6,0.84]
[1720656950685,0.08650631,3104.7,3104.6,0.84]
[1720656951063,2.4757,3104.8,3104.6,0.84]
[1720656951393,0.086781,3104.7,3104.6,0.84]
[1720656951596,0.33737197,3105.0,3104.6,0.84]
[1720656951800,0.08691746,3104.9,3104.6,0.84]
[1720656953109,0.08691746,3104.9,3104.4,0.84]
[1720656954509,2.3575,3104.8,3104.4,0.84]
[1720656954810,0.08685639,3104.7,3104.2,0.84]
[1720656955011,2.63567894,3104.8,3104.1,0.84]
[1720656955321,0.08687546,3104.7,3104.1,0.84]
[1720656955610,2.3575,3104.8,3104.1,0.84]
[1720656955811,0.08693909,3104.7,3104.1,0.84]
[1720656956016,2.3575,3104.8,3104.1,0.84]
[1720656956216,0.08689601,3104.7,3104.1,0.84]
[1720656956417,2.3575,3104.8,3104.1,0.84]
[1720656956603,0.08689601,3104.7,3104.1,0.84]
[1720656956830,2.3575,3104.8,3104.1,0.84]
[1720656957009,0.08689601,3104.7,3104.1,0.84]
[1720656957205,2.6269872,3104.8,3104.1,0.84]
[1720656957410,0.08689601,3104.7,3104.1,0.84]
[1720656957718,2.3575,3104.8,3104.1,0.84]
[1720656957921,2.3575,3104.8,3104.3,0.84]
[1720656958085,0.08690629,3104.7,3104.3,0.84]
[1720656958625,2.3575,3104.8,3104.3,0.84]
[1720656959118,0.08685763,3104.7,3104.3,0.84]
[1720656959489,2.3575,3104.8,3104.3,0.84]
[1720656959924,0.08687456,3104.7,3104.3,0.84]
[1720656960335,2.3575,3104.8,3104.3,0.84]
[1720656960712,0.08687456,3104.7,3104.3,0.84]
[1720656961018,2.3575,3104.8,3104.3,0.84]
[1720656961198,0.08692071,3104.7,3104.3,0.84]
[1720656961398,2.3575,3104.8,3104.3,0.84]
[1720656961598,0.08692071,3104.7,3104.3,0.84]
[1720656961836,2.3575,3104.8,3104.3,0.84]
[1720656962012,0.08687959,3104.7,3104.3,0.84]
[1720656962207,2.3575,3104.8,3104.3,0.84]
[1720656962434,0.08689315,3104.7,3104.3,0.84]
[1720656962642,2.3575,3104.8,3104.3,0.84]